fUSD/lending_fUSD_20240517
["ID","MTS","AMOUNT","RATE_DAILY","PERIOD"]
[327327000,1715988638264,-500.0,0.00012328,2]
[327327001,1715988638274,-500.0,0.00012328,2]
[327327002,1715988638285,-508.03,0.00012328,2]
[327327003,1715988638295,-507.43246463,0.00012328,2]
[327327004,1715988638305,-509.27416462,0.00012328,2]
[327327005,1715988638314,-500.0,0.00012328,2]
[327327006,1715988638324,-500.0,0.00012328,2]
[327327007,1715988638334,-584.14901119,0.00012328,2]
[327327008,1715988638344,-500.0,0.00012328,2]
[327327009,1715988638354,-500.0,0.00012328,2]
[327327010,1715988638363,-500.0,0.00012328,2]
[327327011,1715988638373,-601.18,0.00012328,2]
[327327012,1715988638383,-500.0,0.00012328,2]
[327327013,1715988638392,-500.0,0.00012328,2]
[327327014,1715988638401,-500.0,0.00012328,2]
[327327016,1715988638411,-500.0,0.00012328,2]
[327327018,1715988638422,-500.0,0.00012328,2]
[327327020,1715988638432,-500.0,0.00012328,2]
[327327022,1715988638441,-500.0,0.00012328,2]
[327327024,1715988638451,-500.0,0.00012328,2]
[327327026,1715988638460,-500.0,0.00012328,2]
[327327028,1715988638470,-502.71008578,0.00012328,2]
[327327030,1715988638480,-500.0,0.00012328,2]
[327327032,1715988638489,-500.0,0.00012328,2]
[327327034,1715988638499,-227.15,0.00012328,2]
[327327036,1715988638509,-500.0,0.00012328,2]
[327327038,1715988638518,-500.0,0.00012328,2]
[327327040,1715988638528,-500.0,0.00012328,2]
[327327042,1715988638538,-500.0,0.00012328,2]
[327327044,1715988638547,-500.0,0.00012328,2]
[327327046,1715988638557,-577.6,0.00012328,2]
[327327048,1715988638567,-500.0,0.00012328,2]
[327327050,1715988638581,-500.0,0.00012328,2]
[327327052,1715988638591,-500.0,0.00012328,2]
[327327053,1715988638600,-493.64,0.00012328,2]
[327327056,1715988638611,-500.0,0.00012328,2]
[327327057,1715988638621,-463.5,0.00012328,2]
[327327059,1715988638631,-500.0,0.00012328,2]
[327327062,1715988638641,-500.0,0.00012328,2]
[327327064,1715988638652,-500.0,0.00012328,2]
[327327066,1715988638662,-500.0,0.00012328,2]
[327327067,1715988638672,-540.68,0.00012328,2]
[327327069,1715988638683,-500.0,0.00012328,2]
[327327071,1715988638693,-500.0,0.00012328,2]
[327327074,1715988638703,-500.0,0.00012328,2]
[327327076,1715988638718,-500.0,0.00012328,2]
[327327078,1715988638732,-500.0,0.00012328,2]
[327327081,1715988638746,-416.73,0.00012328,2]
[327327083,1715988638759,-591.82,0.00012328,2]
[327327085,1715988638770,-500.0,0.00012328,2]
[327327088,1715988638783,-500.0,0.00012328,2]
[327327090,1715988638797,-500.0,0.00012328,2]
[327327093,1715988638810,-410.65,0.00012328,2]
[327327095,1715988638823,-500.0,0.00012328,2]
[327327097,1715988638836,-500.0,0.00012328,2]
[327327099,1715988638848,-500.0,0.00012328,2]
[327327102,1715988638861,-500.0,0.00012328,2]
[327327104,1715988638877,-500.0,0.00012328,2]
[327327107,1715988638890,-500.0,0.00012328,2]
[327327109,1715988638903,-500.0,0.00012328,2]
[327327112,1715988638916,-500.0,0.00012328,2]
[327327114,1715988638928,-500.0,0.00012328,2]
[327327116,1715988638939,-500.0,0.00012328,2]
[327327118,1715988638953,-500.0,0.00012328,2]
[327327121,1715988638966,-500.0,0.00012328,2]
[327327123,1715988638978,-500.0,0.00012328,2]
[327327125,1715988638990,-582.8,0.00012328,2]
[327327127,1715988639001,-500.0,0.00012328,2]
[327327129,1715988639013,-500.0,0.00012328,2]
[327327132,1715988639026,-500.0,0.00012328,2]
[327327134,1715988639039,-500.0,0.00012328,2]
[327327136,1715988639053,-500.0,0.00012328,2]
[327327139,1715988639066,-500.0,0.00012328,2]
[327327141,1715988639079,-570.91,0.00012328,2]
[327327143,1715988639092,-470.0,0.00012328,2]
[327327146,1715988639107,-500.0,0.00012328,2]
[327327148,1715988639121,-500.0,0.00012328,2]
[327327150,1715988639135,-500.0,0.00012328,2]
[327327153,1715988639147,-500.0,0.00012328,2]
[327327155,1715988639157,-500.0,0.00012328,2]
[327327157,1715988639169,-600.69,0.00012328,2]
[327327159,1715988639180,-500.0,0.00012328,2]
[327327161,1715988639193,-500.0,0.00012328,2]
[327327164,1715988639207,-500.0,0.00012328,2]
[327327166,1715988639220,-500.0,0.00012328,2]
[327327168,1715988639233,-952.62,0.00012328,2]
[327327170,1715988639244,-500.0,0.00012328,2]
[327327173,1715988639256,-500.0,0.00012328,2]
[327327175,1715988639268,-500.0,0.00012328,2]
[327327177,1715988639281,-500.0,0.00012328,2]
[327327179,1715988639293,-500.0,0.00012328,2]
[327327181,1715988639304,-500.0,0.00012328,2]
[327327184,1715988639316,-500.0,0.00012328,2]
[327327186,1715988639327,-2441.23,0.00012328,2]
[327327188,1715988639338,-794.21,0.00012328,2]
[327327190,1715988639350,-4853.52,0.00012328,2]
[327327192,1715988639363,-500.0,0.00012328,2]
[327327194,1715988639376,-500.0,0.00012328,2]
[327327197,1715988639390,-641.34,0.00012328,2]
[327327199,1715988639402,-500.0,0.00012328,2]
[327327201,1715988639414,-500.0,0.00012328,2]
[327327203,1715988639426,-500.0,0.00012328,2]
[327327206,1715988639439,-189.756362,0.00012343,2]
[327327208,1715988639452,-4373.000441,0.00012343,2]
[327327210,1715988639466,-165.520287,0.00012343,2]
[327327212,1715988639479,-561.166813,0.00012343,2]
[327327214,1715988639491,-811.98161317,0.00012343,2]
[327327243,1715988639769,-341.65219483,0.00012343,2]
[327327245,1715988639782,-960.246382,0.00012343,2]
[327327247,1715988639794,-180.0,0.00012378,2]
[327327249,1715988639805,-2500.0,0.00012396,2]
[327327251,1715988639818,-151.71405486,0.00012396,2]
[327327254,1715988639830,-703.17710396,0.00012396,2]
[327327256,1715988639842,-703.17710388,0.00012452,2]
[327327258,1715988639855,-500.0,0.00012496,2]
[327327260,1715988639867,-500.0,0.00012496,2]
[327327262,1715988639879,-500.0,0.00012496,2]
[327327264,1715988639891,-500.0,0.00012496,2]
[327327267,1715988639904,-500.0,0.00012496,2]
[327327269,1715988639918,-500.0,0.00012496,2]
[327327271,1715988639931,-500.0,0.00012496,2]
[327327273,1715988639944,-500.0,0.00012496,2]
[327327276,1715988639957,-500.0,0.00012496,2]
[327327278,1715988639969,-500.0,0.00012496,2]
[327327280,1715988639982,-500.0,0.00012496,2]
[327327282,1715988639995,-322.82059365,0.00012496,2]
[327327284,1715988640008,-500.0,0.00012496,2]
[327327287,1715988640021,-500.0,0.00012496,2]
[327327289,1715988640034,-591.29,0.00012496,2]
[327327291,1715988640048,-318.82,0.00012496,2]
[327327293,1715988640059,-150.0,0.00012496,2]
[327327295,1715988640070,-500.0,0.00012496,2]
[327327297,1715988640081,-500.0,0.00012496,2]
[327327318,1715988640292,-500.0,0.00012496,2]
[327327322,1715988640318,-500.0,0.00012496,2]
[327327324,1715988640329,-500.0,0.00012496,2]
[327327326,1715988640340,-500.0,0.00012496,2]
[327327328,1715988640351,-500.0,0.00012496,2]
[327327330,1715988640361,-500.0,0.00012496,2]
[327327332,1715988640372,-500.0,0.00012496,2]
[327327334,1715988640381,-500.0,0.00012496,2]
[327327336,1715988640392,-500.0,0.00012496,2]
[327327338,1715988640402,-500.0,0.00012496,2]
[327327339,1715988640412,-500.0,0.00012496,2]
[327327340,1715988640423,-500.0,0.00012496,2]
[327327341,1715988640434,-500.0,0.00012496,2]
[327327342,1715988640444,-500.0,0.00012496,2]
[327327343,1715988640455,-500.0,0.00012496,2]
[327327344,1715988640465,-500.0,0.00012496,2]
[327327345,1715988640475,-500.0,0.00012496,2]
[327327346,1715988640486,-500.0,0.00012496,2]
[327327347,1715988640496,-500.0,0.00012496,2]
[327327348,1715988640507,-500.0,0.00012496,2]
[327327349,1715988640518,-500.0,0.00012496,2]
[327327350,1715988640529,-500.0,0.00012496,2]
[327327351,1715988640539,-500.0,0.00012496,2]
[327327353,1715988640550,-500.0,0.00012496,2]
[327327355,1715988640560,-500.0,0.00012496,2]
[327327358,1715988640575,-500.0,0.00012496,2]
[327327360,1715988640586,-500.0,0.00012496,2]
[327327362,1715988640596,-500.0,0.00012496,2]
[327327364,1715988640607,-500.0,0.00012496,2]
[327327365,1715988640618,-500.0,0.00012496,2]
[327327367,1715988640628,-500.0,0.00012496,2]
[327327369,1715988640639,-500.0,0.00012496,2]
[327327371,1715988640651,-1011.89109032,0.00012496,2]
[327327373,1715988640661,-500.0,0.00012496,2]
[327327375,1715988640672,-500.0,0.00012496,2]
[327327377,1715988640682,-500.0,0.00012496,2]
[327327379,1715988640693,-500.0,0.00012496,2]
[327327381,1715988640703,-500.0,0.00012496,2]
[327327383,1715988640714,-500.0,0.00012496,2]
[327327385,1715988640724,-500.0,0.00012496,2]
[327327387,1715988640735,-500.0,0.00012496,2]
[327327389,1715988640745,-500.0,0.00012496,2]
[327327391,1715988640755,-572.47659928,0.00012496,2]
[327327393,1715988640765,-500.0,0.00012496,2]
[327327395,1715988640775,-500.0,0.00012496,2]
[327327397,1715988640785,-500.0,0.00012496,2]
[327327399,1715988640795,-500.0,0.00012496,2]
[327327401,1715988640805,-500.0,0.00012496,2]
[327327403,1715988640815,-500.0,0.00012496,2]
[327327405,1715988640825,-500.0,0.00012496,2]
[327327407,1715988640835,-500.0,0.00012496,2]
[327327409,1715988640846,-500.0,0.00012496,2]
[327327411,1715988640856,-500.0,0.00012496,2]
[327327413,1715988640866,-500.0,0.00012496,2]
[327327415,1715988640875,-500.0,0.00012496,2]
[327327417,1715988640885,-500.0,0.00012496,2]
[327327419,1715988640895,-552.46142049,0.00012496,2]
[327327421,1715988640904,-500.0,0.00012496,2]
[327327423,1715988640913,-500.0,0.00012496,2]
[327327425,1715988640923,-500.0,0.00012496,2]
[327327427,1715988640932,-500.0,0.00012496,2]
[327327429,1715988640941,-354.31,0.00012496,2]
[327327431,1715988640950,-500.0,0.00012496,2]
[327327433,1715988640960,-500.0,0.00012496,2]
[327327435,1715988640969,-500.0,0.00012496,2]
[327327437,1715988640978,-566.01,0.00012496,2]
[327327439,1715988640987,-500.0,0.00012496,2]
[327327441,1715988640996,-500.0,0.00012496,2]
[327327443,1715988641005,-500.0,0.00012496,2]
[327327446,1715988641015,-500.0,0.00012496,2]
[327327447,1715988641024,-500.0,0.00012496,2]
[327327450,1715988641033,-619.13,0.00012496,2]
[327327452,1715988641043,-500.0,0.00012496,2]
[327327454,1715988641053,-500.0,0.00012496,2]
[327327456,1715988641062,-500.0,0.00012496,2]
[327327458,1715988641071,-500.0,0.00012496,2]
[327327460,1715988641080,-506.26078918,0.00012496,2]
[327327462,1715988641090,-500.0,0.00012496,2]
[327327464,1715988641099,-4373.000441,0.00012497,2]
[327327466,1715988641109,-561.166813,0.00012497,2]
[327327468,1715988641118,-1153.633808,0.00012497,2]
[327327470,1715988641127,-960.246382,0.00012497,2]
[327327472,1715988641136,-703.17710388,0.00012508,2]
[327327474,1715988641146,-155.0,0.00012563,2]
[327327476,1715988641155,-151.71405486,0.00012564,2]
[327327478,1715988641164,-703.17710388,0.00012564,2]
[327327480,1715988641175,-168.28,0.0001262,2]
[327327482,1715988641184,-4373.000441,0.00012651,2]
[327327484,1715988641194,-561.166813,0.00012651,2]
[327327486,1715988641204,-1153.633808,0.00012651,2]
[327327488,1715988641213,-960.246382,0.00012651,2]
[327327489,1715988641222,-151.71405486,0.00012732,2]
[327327492,1715988641232,-12651.55997179,0.00012797,2]
[327327494,1715988641242,-500.0,0.00012798,2]
[327327496,1715988641251,-500.0,0.00012798,2]
[327327497,1715988641261,-500.0,0.00012798,2]
[327327500,1715988641272,-500.0,0.00012798,2]
[327327502,1715988641281,-500.0,0.00012798,2]
[327327504,1715988641290,-500.0,0.00012798,2]
[327327506,1715988641300,-500.0,0.00012798,2]
[327327508,1715988641310,-500.0,0.00012798,2]
[327327510,1715988641319,-500.0,0.00012798,2]
[327327512,1715988641328,-500.0,0.00012798,2]
[327327514,1715988641337,-545.38,0.00012798,2]
[327327516,1715988641346,-1057.16,0.00012798,2]
[327327518,1715988641356,-500.0,0.00012798,2]
[327327520,1715988641365,-500.0,0.00012798,2]
[327327522,1715988641375,-500.0,0.00012798,2]
[327327524,1715988641385,-500.0,0.00012798,2]
[327327526,1715988641394,-853.59,0.00012798,2]
[327327528,1715988641403,-500.0,0.00012798,2]
[327327530,1715988641413,-500.0,0.00012798,2]
[327327532,1715988641423,-500.0,0.00012798,2]
[327327534,1715988641432,-500.0,0.00012798,2]
[327327536,1715988641441,-500.0,0.00012798,2]
[327327538,1715988641450,-500.0,0.00012798,2]
[327327540,1715988641459,-500.0,0.00012798,2]
[327327542,1715988641468,-642.16,0.00012798,2]
[327327544,1715988641478,-500.0,0.00012798,2]
[327327546,1715988641487,-500.0,0.00012798,2]
[327327548,1715988641496,-500.0,0.00012798,2]
[327327550,1715988641507,-500.0,0.00012798,2]
[327327552,1715988641517,-500.0,0.00012798,2]
[327327554,1715988641526,-500.0,0.00012798,2]
[327327556,1715988641536,-229.65403809,0.00012798,2]
[327327558,1715988641545,-160.29,0.00012798,2]
[327327560,1715988641555,-500.0,0.00012798,2]
[327327562,1715988641565,-500.0,0.00012798,2]
[327327564,1715988641579,-243.72,0.00012798,2]
[327327566,1715988641588,-500.0,0.00012798,2]
[327327568,1715988641598,-500.0,0.00012798,2]
[327327570,1715988641607,-506.52,0.00012798,2]
[327327572,1715988641618,-500.0,0.00012798,2]
[327327574,1715988641628,-563.82,0.00012798,2]
[327327576,1715988641638,-526.33005659,0.00012798,2]
[327327578,1715988641649,-500.0,0.00012798,2]
[327327581,1715988641660,-418.94,0.00012798,2]
[327327583,1715988641670,-500.0,0.00012798,2]
[327327585,1715988641680,-500.0,0.00012798,2]
[327327587,1715988641690,-500.0,0.00012798,2]
[327327589,1715988641700,-2876.57,0.00012798,2]
[327327591,1715988641709,-500.0,0.00012798,2]
[327327593,1715988641718,-575.04117592,0.00012798,2]
[327327595,1715988641727,-603.92688297,0.00012799,2]
[327327597,1715988641738,-500.0,0.00012799,2]
[327327598,1715988641748,-500.0,0.00012799,2]
[327327601,1715988641758,-500.0,0.00012799,2]
[327327603,1715988641768,-500.0,0.00012799,2]
[327327605,1715988641778,-500.0,0.00012799,2]
[327327607,1715988641787,-602.26,0.00012799,2]
[327327609,1715988641797,-500.0,0.00012799,2]
[327327611,1715988641806,-500.0,0.00012799,2]
[327327613,1715988641815,-500.0,0.00012799,2]
[327327615,1715988641825,-500.0,0.00012799,2]
[327327616,1715988641834,-162.71,0.00012799,2]
[327327618,1715988641844,-500.0,0.00012799,2]
[327327621,1715988641854,-500.0,0.00012799,2]
[327327622,1715988641864,-500.0,0.00012799,2]
[327327624,1715988641874,-500.0,0.00012799,2]
[327327626,1715988641884,-500.0,0.00012799,2]
[327327628,1715988641893,-503.43635194,0.00012799,2]
[327327631,1715988641903,-500.0,0.00012799,2]
[327327633,1715988641912,-503.3222524,0.00012799,2]
[327327634,1715988641922,-500.0,0.00012799,2]
[327327636,1715988641932,-500.0,0.00012799,2]
[327327639,1715988641941,-549.10311725,0.00012799,2]
[327327640,1715988641951,-504.02096241,0.00012799,2]
[327327643,1715988641960,-500.0,0.00012799,2]
[327327645,1715988641969,-500.0,0.00012799,2]
[327327647,1715988641978,-500.0,0.00012799,2]
[327327649,1715988641988,-500.0,0.00012799,2]
[327327651,1715988641997,-511.79027256,0.00012799,2]
[327327653,1715988642006,-500.0,0.00012799,2]
[327327655,1715988642016,-500.0,0.00012799,2]
[327327657,1715988642025,-502.31886938,0.00012799,2]
[327327658,1715988642034,-500.0,0.00012799,2]
[327327660,1715988642043,-509.5217893,0.00012799,2]
[327327663,1715988642053,-500.0,0.00012799,2]
[327327665,1715988642063,-500.0,0.00012799,2]
[327327667,1715988642073,-502.50379749,0.00012799,2]
[327327669,1715988642083,-538.51236108,0.00012799,2]
[327327671,1715988642092,-502.14427196,0.00012799,2]
[327327673,1715988642101,-500.0,0.00012799,2]
[327327675,1715988642111,-500.0,0.00012799,2]
[327327677,1715988642120,-500.0,0.00012799,2]
[327327679,1715988642129,-500.0,0.00012799,2]
[327327681,1715988642138,-500.0,0.00012799,2]
[327327683,1715988642147,-587.98,0.00012799,2]
[327327684,1715988642157,-500.0,0.00012799,2]
[327327685,1715988642166,-502.9248386,0.00012799,2]
[327327686,1715988642177,-500.0,0.00012799,2]
[327327687,1715988642186,-500.0,0.00012799,2]
[327327688,1715988642196,-500.0,0.00012799,2]
[327327689,1715988642205,-501.94722179,0.00012799,2]
[327327690,1715988642215,-500.0,0.00012799,2]
[327327691,1715988642224,-528.05332019,0.00012799,2]
[327327692,1715988642234,-500.0,0.00012799,2]
[327327693,1715988642243,-500.0,0.00012799,2]
[327327694,1715988642253,-500.0,0.00012799,2]
[327327695,1715988642262,-500.0,0.00012799,2]
[327327696,1715988642271,-500.0,0.00012799,2]
[327327697,1715988642281,-318.22337599,0.00012799,2]
[327327698,1715988642290,-509.26871619,0.00012799,2]
[327327699,1715988642300,-500.0,0.00012799,2]
[327327700,1715988642309,-399.64075549,0.00012799,2]
[327327701,1715988642318,-510.5895995,0.00012799,2]
[327327702,1715988642328,-500.0,0.00012799,2]
[327327703,1715988642337,-325.60112367,0.00012799,2]
[327327704,1715988642347,-500.0,0.00012799,2]
[327327705,1715988642356,-500.0,0.00012799,2]
[327327706,1715988642365,-500.0,0.00012799,2]
[327327707,1715988642374,-500.0,0.00012799,2]
[327327708,1715988642384,-379.81236588,0.00012799,2]
[327327709,1715988642393,-500.0,0.00012799,2]
[327327710,1715988642403,-500.0,0.00012799,2]
[327327711,1715988642413,-500.0,0.00012799,2]
[327327713,1715988642422,-500.0,0.00012799,2]
[327327715,1715988642432,-500.0,0.00012799,2]
[327327717,1715988642441,-500.0,0.00012799,2]
[327327719,1715988642451,-500.0,0.00012799,2]
[327327722,1715988642460,-500.0,0.00012799,2]
[327327724,1715988642471,-500.0,0.00012799,2]
[327327726,1715988642480,-766.81,0.00012799,2]
[327327728,1715988642490,-500.0,0.00012799,2]
[327327729,1715988642499,-513.41410595,0.00012799,2]
[327327731,1715988642509,-500.0,0.00012799,2]
[327327734,1715988642519,-500.0,0.00012799,2]
[327327735,1715988642528,-500.0,0.00012799,2]
[327327738,1715988642538,-648.69,0.00012799,2]
[327327740,1715988642548,-1272.72,0.00012799,2]
[327327742,1715988642557,-500.0,0.00012799,2]
[327327744,1715988642568,-500.0,0.00012799,2]
[327327745,1715988642581,-500.0,0.00012799,2]
[327327746,1715988642590,-500.0,0.00012799,2]
[327327747,1715988642601,-500.0,0.00012799,2]
[327327748,1715988642610,-500.0,0.00012799,2]
[327327749,1715988642621,-500.0,0.00012799,2]
[327327750,1715988642631,-500.0,0.00012799,2]
[327327751,1715988642640,-500.0,0.00012799,2]
[327327752,1715988642651,-500.0,0.00012799,2]
[327327753,1715988642662,-500.0,0.00012799,2]
[327327754,1715988642673,-500.0,0.00012799,2]
[327327755,1715988642682,-500.0,0.00012799,2]
[327327756,1715988642692,-500.0,0.00012799,2]
[327327757,1715988642701,-319.90782488,0.00012799,2]
[327327758,1715988642712,-500.0,0.00012799,2]
[327327759,1715988642722,-500.0,0.00012799,2]
[327327760,1715988642732,-500.0,0.00012799,2]
[327327761,1715988642742,-500.0,0.00012799,2]
[327327763,1715988642751,-500.0,0.00012799,2]
[327327765,1715988642761,-500.0,0.00012799,2]
[327327767,1715988642771,-500.0,0.00012799,2]
[327327769,1715988642780,-500.0,0.00012799,2]
[327327771,1715988642790,-500.0,0.00012799,2]
[327327773,1715988642800,-500.0,0.00012799,2]
[327327775,1715988642810,-500.0,0.00012799,2]
[327327777,1715988642819,-500.0,0.00012799,2]
[327327779,1715988642829,-719.93,0.00012799,2]
[327327781,1715988642838,-500.0,0.00012799,2]
[327327783,1715988642847,-500.0,0.00012799,2]
[327327785,1715988642857,-625.4,0.00012799,2]
[327327787,1715988642866,-500.0,0.00012799,2]
[327327788,1715988642875,-500.0,0.00012799,2]
[327327789,1715988642885,-500.0,0.00012799,2]
[327327790,1715988642894,-500.0,0.00012799,2]
[327327791,1715988642903,-500.0,0.00012799,2]
[327327792,1715988642913,-500.0,0.00012799,2]
[327327793,1715988642922,-501.42088809,0.00012799,2]
[327327794,1715988642931,-505.86413061,0.00012799,2]
[327327795,1715988642941,-605.98,0.00012799,2]
[327327796,1715988642950,-500.0,0.00012799,2]
[327327797,1715988642959,-503.28736698,0.00012799,2]
[327327798,1715988642970,-505.45542432,0.00012799,2]
[327327799,1715988642979,-500.0,0.00012799,2]
[327327800,1715988642989,-500.0,0.00012799,2]
[327327801,1715988642998,-5707.9215,0.000128,2]
[327327802,1715988643007,-4373.000441,0.00012805,2]
[327327803,1715988643018,-561.166813,0.00012805,2]
[327327804,1715988643027,-1153.633808,0.00012805,2]
[327327805,1715988643036,-960.246382,0.00012805,2]
[327327806,1715988643046,-399.99474123,0.00012869,2]
[327327807,1715988643055,-2758.26537,0.0001287,2]
[327327808,1715988643065,-200.0,0.00012895,2]
[327327809,1715988643075,-1000.0,0.00012895,2]
[327327811,1715988643084,-500.0,0.00012895,2]
[327327812,1715988643093,-500.0,0.00012896,2]
[327327813,1715988643103,-200.0,0.00012896,2]
[327327814,1715988643115,-1000.0,0.00012896,2]
[327327815,1715988643128,-1000.0,0.00012896,2]
[327327816,1715988643137,-500.0,0.00012896,2]
[327327817,1715988643267,-500.0,0.00012896,2]
[327327818,1715988643293,-336.8876014,0.00012896,2]
[327327819,1715988643304,-336.88760137,0.00012897,2]
[327327820,1715988643314,-336.88760137,0.00012899,2]
[327327821,1715988643324,-191.16953814,0.00012899,2]
[327327822,1715988643333,-173.31328606,0.00012899,2]
[327327823,1715988643343,-28772.39964772,0.000129,2]
[327327824,1715988643352,-174.27566945,0.000129,2]
[327327825,1715988643362,-2411.14908678,0.000129,2]
[327327826,1715988643372,-2411.14908672,0.000129,2]
[327327827,1715988643381,-2411.14908672,0.000129,2]
[327327828,1715988643391,-2411.14908672,0.000129,2]
[327327829,1715988643400,-2411.14908672,0.000129,2]
[327327830,1715988643410,-2411.14908672,0.000129,2]
[327327831,1715988643419,-2411.14908672,0.000129,2]
[327327832,1715988643429,-2411.14908672,0.000129,2]
[327327833,1715988643438,-150.05995938,0.000129,2]
[327327834,1715988643447,-151.71405486,0.000129,2]
[327327835,1715988643457,-179.58164916,0.000129,2]
[327327836,1715988643467,-881.14539351,0.000129,2]
[327327837,1715988643477,-336.88760137,0.000129,2]
[327327838,1715988643487,-4373.000441,0.0001296,2]
[327327839,1715988643496,-561.166813,0.0001296,2]
[327327840,1715988643506,-1153.633808,0.0001296,2]
[327327841,1715988643516,-960.246382,0.0001296,2]
[327327842,1715988643527,-160.273447,0.00012968,2]
[327327843,1715988643537,-4892.0,0.00012986,2]
[327327844,1715988643547,-572.0,0.00012986,2]
[327327845,1715988643556,-398.45063618,0.00012996,2]
[327327846,1715988643566,-409.88737725,0.00012996,2]
[327327847,1715988643579,-621.25360783,0.00012996,2]
[327327848,1715988643589,-157.051808,0.00012996,2]
[327327849,1715988643599,-157.051808,0.00012996,2]
[327327850,1715988643608,-157.051808,0.00012996,2]
[327327851,1715988643619,-157.051808,0.00012996,2]
[327327852,1715988643628,-157.051808,0.00012996,2]
[327327853,1715988643638,-432.19,0.00012996,2]
[327327854,1715988643647,-500.0,0.00012996,2]
[327327855,1715988643658,-500.0,0.00012996,2]
[327327856,1715988643668,-500.0,0.00012996,2]
[327327857,1715988643679,-500.0,0.00012996,2]
[327327858,1715988643688,-500.0,0.00012996,2]
[327327859,1715988643697,-500.0,0.00012996,2]
[327327860,1715988643707,-225.83,0.00012996,2]
[327327861,1715988643716,-578.76,0.00012996,2]
[327327862,1715988643727,-500.0,0.00012996,2]
[327327863,1715988643736,-500.0,0.00012996,2]
[327327864,1715988643746,-500.0,0.00012996,2]
[327327865,1715988643755,-150.0,0.00012996,2]
[327327866,1715988643765,-500.0,0.00012996,2]
[327327868,1715988643775,-500.0,0.00012996,2]
[327327870,1715988643784,-500.0,0.00012996,2]
[327327872,1715988643793,-398.61,0.00012996,2]
[327327874,1715988643802,-500.0,0.00012996,2]
[327327875,1715988643812,-369.73,0.00012996,2]
[327327876,1715988643822,-595.83,0.00012996,2]
[327327877,1715988643832,-345.0,0.00012996,2]
[327327878,1715988643841,-233.15,0.00012996,2]
[327327879,1715988643850,-500.0,0.00012996,2]
[327327880,1715988643859,-500.0,0.00012996,2]
[327327881,1715988643869,-500.0,0.00012996,2]
[327327882,1715988643879,-583.01,0.00012996,2]
[327327883,1715988643889,-500.0,0.00012996,2]
[327327884,1715988643899,-500.0,0.00012996,2]
[327327885,1715988643909,-500.0,0.00012996,2]
[327327886,1715988643918,-500.0,0.00012996,2]
[327327887,1715988643928,-500.0,0.00012996,2]
[327327888,1715988643938,-500.0,0.00012996,2]
[327327889,1715988643948,-500.0,0.00012996,2]
[327327890,1715988643958,-500.0,0.00012996,2]
[327327891,1715988643968,-500.0,0.00012996,2]
[327327892,1715988643977,-500.0,0.00012996,2]
[327327893,1715988643987,-500.0,0.00012996,2]
[327327894,1715988643998,-500.0,0.00012996,2]
[327327895,1715988644007,-595.0,0.00012996,2]
[327327896,1715988644017,-500.0,0.00012996,2]
[327327897,1715988644028,-448.86,0.00012996,2]